Workbook

Sheet Popust
A1: Račun | E1: Račun
A2: Proizvod 1 | B2: 100.00 € | E2: Proizvod 1 | F2: 100.00 €
A3: Proizvod 2 | B3: 200.00 € | E3: Proizvod 2 | F3: 200.00 €
A4: Proizvod 3 | B4: 300.00 € | E4: Proizvod 3 | F4: 300.00 €
A5: Proizvod 4 | B5: 200.00 € | E5: Proizvod 4 | F5: 200.00 €
A6: Proizvod 5 | B6: 100.00 € | E6: Proizvod 5 | F6: 100.00 €
A7: Ukupno | E7: Za platiti
A8: Popust
A9: Za platiti

Sheet Usporedba prodaje
A1: Prodaja prijenosnih računala u Hrvatskoj
A2: Godina | B2: HP | C2: Lenovo | D2: Usporedba (HP/Lenovo?)
A3: 2006 | B3: 9824 | C3: 8867
A4: 2007 | B4: 9233 | C4: 9256
A5: 2008 | B5: 8967 | C5: 8967
A6: 2009 | B6: 8061 | C6: 6989
A7: 2010 | B7: 8318 | C7: 5489
A8: 2011 | B8: 8969 | C8: 6448
A9: 2012 | B9: 9383 | C9: 9383
A10: 2013 | B10: 10498 | C10: 10000
A11: 2014 | B11: 9488 | C11: 11369
A12: 2015 | B12: 8746 | C12: 12369

Sheet Tablica množenja
A1: Tablica množenja
B2: 1 | C2: 2 | D2: 3 | E2: 4 | F2: 5 | G2: 6 | H2: 7 | I2: 8 | J2: 9 | K2: 10
A3: 1
A4: 2
A5: 3
A6: 4
A7: 5
A8: 6
A9: 7
A10: 8
A11: 9
A12: 10

Sheet Krediti
A1: Popis izdanih kredita
A2: Br. kredita | B2: Datum | C2: Tvrtka | D2: Kredit | E2: Iznos
A3: 00036 | B3: 2013-04-06 | C3: Motivo | D3: devizni | E3: 2,420,465.00 kn | G3: Ukupni broj izdanih kredita:
A4: 00116 | B4: 2013-07-19 | C4: Harma | D4: potrošački | E4: 416,272.00 kn | G4: Ukupni iznos svih izdanih kredita:
A5: 00167 | B5: 2013-08-17 | C5: Mediteran | D5: robni | E5: 627,515.00 kn
A6: 00179 | B6: 2013-09-11 | C6: Koncert | D6: posebni | E6: 1,089,359.00 kn | G6: Ukupni broj kredita po vrsti
A7: 00224 | B7: 2013-12-14 | C7: Studio | D7: devizni | E7: 75,000.00 kn | G7: devizni
A8: 00229 | B8: 2014-01-26 | C8: Optima | D8: robni | E8: 1,337,285.00 kn | G8: dugoročni
A9: 00307 | B9: 2014-06-12 | C9: Song | D9: dugoročni | E9: 1,148,254.00 kn | G9: kratkoročni
A10: 00376 | B10: 2014-07-17 | C10: Adria Art | D10: potrošački | E10: 75,000.00 kn | G10: posebni
A11: 00392 | B11: 2014-08-09 | C11: Mediteran | D11: kratkoročni | E11: 2,612,194.00 kn | G11: potrošački
A12: 00444 | B12: 2014-10-01 | C12: Optima | D12: robni | E12: 574,354.00 kn | G12: robni
A13: 00570 | B13: 2014-10-24 | C13: Alfa Ton | D13: dugoročni | E13: 1,259,347.00 kn
A14: 00579 | B14: 2015-02-06 | C14: Song | D14: dugoročni | E14: 734,366.00 kn | G14: Ukupni iznosi kredita po tvrtkama
A15: 00602 | B15: 2015-02-26 | C15: Adria Art | D15: potrošački | E15: 225,000.00 kn | G15: Adria Art
A16: 00657 | B16: 2015-03-14 | C16: Mediteran | D16: devizni | E16: 829,565.00 kn | G16: Alfa Ton
A17: 00684 | B17: 2015-03-19 | C17: Optima | D17: robni | E17: 90,000.00 kn | G17: Harma
A18: 00861 | B18: 2015-04-18 | C18: Song | D18: dugoročni | E18: 404,309.00 kn | G18: Koncert
A19: 00871 | B19: 2015-05-11 | C19: Adria Art | D19: kratkoročni | E19: 2,651,968.00 kn | G19: Mediteran
A20: 00899 | B20: 2015-06-10 | C20: Harma | D20: potrošački | E20: 1,089,456.00 kn | G20: Motivo
A21: 00922 | B21: 2015-07-01 | C21: Motivo | D21: potrošački | E21: 111,440.00 kn | G21: Optima
A22: 00966 | B22: 2015-11-18 | C22: Alfa Ton | D22: robni | E22: 75,000.00 kn | G22: Song
A23: 01003 | B23: 2016-01-05 | C23: Song | D23: potrošački | E23: 6,541,200.00 kn | G23: Studio
A24: 01038 | B24: 2016-01-17 | C24: Motivo | D24: dugoročni | E24: 3,254,000.00 kn
A25: 01084 | B25: 2016-02-03 | C25: Adria Art | D25: kratkoročni | E25: 625,881.00 kn | G25: Ukupni iznosi kredita pojedine vrste po tvrtkama
A26: 01112 | B26: 2016-02-24 | C26: Motivo | D26: potrošački | E26: 122,533.00 kn | G26: Adria Art | H26: kratkoročni
A27: 01146 | B27: 2016-03-01 | C27: Mediteran | D27: posebni | E27: 2,458,700.00 kn | G27: Adria Art | H27: potrošački
A28: 01179 | B28: 2016-03-04 | C28: Optima | D28: robni | E28: 434,030.00 kn | G28: Mediteran | H28: devizni
A29: 01192 | B29: 2016-03-17 | C29: Studio | D29: dugoročni | E29: 995,000.00 kn | G29: Mediteran | H29: dugoročni
A30: 01239 | B30: 2016-04-25 | C30: Mediteran | D30: dugoročni | E30: 128,900.00 kn | G30: Mediteran | H30: kratkoročni
A31: 01268 | B31: 2016-06-11 | C31: Adria Art | D31: kratkoročni | E31: 121,533.00 kn | G31: Mediteran | H31: posebni
A32: 01277 | B32: 2016-07-12 | C32: Harma | D32: potrošački | E32: 2,156,412.00 kn | G32: Mediteran | H32: robni
A33: 01306 | B33: 2016-09-05 | C33: Motivo | D33: devizni | E33: 652,220.00 kn
A34: 01355 | B34: 2016-12-12 | C34: Alfa Ton | D34: robni | E34: 4,326,588.00 kn
A38: Ukupni broj kredita pojedine vrste po tvrtkama
B39: devizni | C39: dugoročni | D39: kratkoročni | E39: posebni | F39: potrošački | G39: robni
A40: Adria Art
A41: Alfa Ton
A42: Harma
A43: Koncert
A44: Mediteran
A45: Motivo
A46: Optima
A47: Song
A48: Studio

Sheet Kolegiji
A1: Kolegiji
A2: Šifra | B2: Naziv kolegija | C2: ECTS
A3: 101 | B3: Engleski jezik za IT | C3: 4
A4: 102 | B4: Matematika 1 | C4: 7
A5: 103 | B5: Računalni alati u uredskom poslovanju | C5: 4
A6: 104 | B6: Programiranje | C6: 6
A7: 105 | B7: Uvod u računalne mreže | C7: 4
A8: 106 | B8: Osnove digitalne elektronike | C8: 5
A9: 201 | B9: Osnove poslovne ekonomije | C9: 4
A10: 202 | B10: Uvod u baze podataka | C10: 5
A11: 203 | B11: Matematika 2 | C11: 5
A12: 204 | B12: Operacijski sustavi | C12: 6
A13: 205 | B13: Građa računala | C13: 5
A14: 206 | B14: Strukture podataka i algoritmi | C14: 5
A18: Podaci o jednom kolegiju
A19: Šifra | B19: Naziv kolegija | C19: ECTS

Sheet Narudžbenica
A1: Narudžbenica
A2: Šifra | B2: Naziv proizvoda | C2: Cijena s PDV-om | D2: Količina | E2: Ukupno
A3: 3009 | D3: 6
A4: 2680 | D4: 4
A5: 946 | D5: 5
A6: 3176 | D6: 8
A7: 4345 | D7: 1
A8: 4430 | D8: 8
A9: 1758 | D9: 10
A10: 1 | D10: 8
A11: 318 | D11: 6
A12: 2292 | D12: 1
A13: 3871 | D13: 3
A14: 684 | D14: 7
C15: SVEUKUPNO:

Sheet Skladište
A1: Šifra | B1: Naziv proizvoda | C1: Neto cijena | D1: PDV | E1: Cijena s PDV
A2: 0000001 | B2: Adaptec U320, 29320, PCI-X, HostRAID 0,1 | C2: =E2/1.25 -> 442.80 € | D2: =E2-C2 -> 110.70 € | E2: 553.50 €
A3: 0000002 | B3: Adapter 2pin ventilator na 3pin ventilator | C3: 491.02 € | D3: 122.75 € | E3: 613.77 €
A4: 0000003 | B4: Adapter 3pin ventilator na 4pin interni | C4: 589.42 € | D4: 147.35 € | E4: 736.77 €
A5: 0000004 | B5: Adapter ATX (24pin->20pin) | C5: 678.96 € | D5: 169.74 € | E5: 848.70 €
A6: 0000005 | B6: Adapter DB25M-DB9M | C6: 491.02 € | D6: 122.75 € | E6: 613.77 €
A7: 0000006 | B7: Adapter DB25M-DB9Ž | C7: 383.76 € | D7: 95.94 € | E7: 479.70 €
A8: 0000007 | B8: Adapter DB25Ž-DB9M | C8: 659.28 € | D8: 164.82 € | E8: 824.10 €
A9: 0000008 | B9: Adapter DB25Ž-DB9Ž | C9: 687.82 € | D9: 171.95 € | E9: 859.77 €
A10: 0000009 | B10: Adapter DVI-HDMI za Sapphire HD kartice | C10: 836.40 € | D10: 209.10 € | E10: 1,045.50 €
A11: 0000010 | B11: Adapter DVI-VGA | C11: 1,351.03 € | D11: 337.76 € | E11: 1,688.79 €
A12: 0000011 | B12: Adapter F m - RF ž | C12: 1,460.26 € | D12: 365.06 € | E12: 1,825.32 €
A13: 0000012 | B13: Adapter F ž - RF m | C13: 1,918.80 € | D13: 479.70 € | E13: 2,398.50 €
A14: 0000013 | B14: Adapter KLINKEN-m 3.5mm/2x CINCH-ž, stereo | C14: 1,328.40 € | D14: 332.10 € | E14: 1,660.50 €
A15: 0000014 | B15: Adapter KLINKEN-m 3.5mm/2x KLINKEN-ž 3.5mm, stereo | C15: 1,276.25 € | D15: 319.06 € | E15: 1,595.31 €
A16: 0000015 | B16: Adapter SATA to ATA (IDE) | C16: 1,081.42 € | D16: 270.35 € | E16: 1,351.77 €
A17: 0000016 | B17: Adapter SCART-m/3x CINCH-ž + 4pin S-VHS-ž, s IN/OUT prekidačem, stereo | C17: 688.80 € | D17: 172.20 € | E17: 861.00 €
A18: 0000017 | B18: Adapter VGA power 6pin-2x molex | C18: 953.50 € | D18: 238.37 € | E18: 1,191.87 €
A19: 0000018 | B19: Adapter za tipkovnicu AT na PS/2 | C19: 610.08 € | D19: 152.52 € | E19: 762.60 €
A20: 0000019 | B20: Adapter za tipkovnicu PS/2 adapter 1x 6M / 2x 6F | C20: 1,003.68 € | D20: 250.92 € | E20: 1,254.60 €
A21: 0000020 | B21: Adapter za tipkovnicu PS/2 na AT | C21: 342.33 € | D21: 85.58 € | E21: 427.91 €
A22: 0000021 | B22: Adobe Acrobat 8.0 HRV Professional | C22: 492.00 € | D22: 123.00 € | E22: 615.00 €
A23: 0000022 | B23: Adobe Acrobat 8.0 HRV Professional | C23: 439.85 € | D23: 109.96 € | E23: 549.81 €
A24: 0000023 | B24: Adobe Acrobat 8.0 HRV Professional, UPG | C24: 1,291.99 € | D24: 323.00 € | E24: 1,614.99 €
A25: 0000024 | B25: Adobe Acrobat 8.0 HRV Professional, UPG | C25: 1,531.10 € | D25: 382.78 € | E25: 1,913.88 €
A26: 0000025 | B26: Adobe Acrobat 8.0 HRV Standard | C26: 12,271.32 € | D26: 3,067.83 € | E26: 15,339.15 €
A27: 0000026 | B27: Adobe Acrobat 8.0 HRV Standard | C27: 2,807.35 € | D27: 701.84 € | E27: 3,509.19 €
A28: 0000027 | B28: Adobe Acrobat 8.0 HRV Standard, UPG | C28: 2,383.25 € | D28: 595.81 € | E28: 2,979.06 €
A29: 0000028 | B29: Adobe Acrobat 8.0 HRV Standard, UPG | C29: 2,890.01 € | D29: 722.50 € | E29: 3,612.51 €
A30: 0000029 | B30: Adobe Creative Suite 3 Design Premium | C30: 2,996.28 € | D30: 749.07 € | E30: 3,745.35 €
A31: 0000030 | B31: Adobe Creative Suite 3 Design Premium | C31: 3,552.24 € | D31: 888.06 € | E31: 4,440.30 €
A32: 0000031 | B32: Adobe Creative Suite 3 Design Premium, UPG s CS1 ili noviji | C32: 4,020.62 € | D32: 1,005.16 € | E32: 5,025.78 €
A33: 0000032 | B33: Adobe Creative Suite 3 Design Premium, UPG s CS1 ili noviji | C33: 3,006.12 € | D33: 751.53 € | E33: 3,757.65 €
A34: 0000033 | B34: Adobe Creative Suite 3 Design Premium, UPG s PS7, Il10, InD2 ili novijih | C34: 3,247.20 € | D34: 811.80 € | E34: 4,059.00 €
A35: 0000034 | B35: Adobe Creative Suite 3 Design Premium, UPG s PS7, Il10, InD2 ili novijih | C35: 3,444.00 € | D35: 861.00 € | E35: 4,305.00 €
A36: 0000035 | B36: Adobe Creative Suite 3 Design Standard | C36: 3,463.68 € | D36: 865.92 € | E36: 4,329.60 €
A37: 0000036 | B37: Adobe Creative Suite 3 Design Standard | C37: 3,078.94 € | D37: 769.73 € | E37: 3,848.67 €
A38: 0000037 | B38: Adobe Creative Suite 3 Design Standard, UPG s CS1 ili noviji | C38: 442.80 € | D38: 110.70 € | E38: 553.50 €
A39: 0000038 | B39: Adobe Creative Suite 3 Design Standard, UPG s CS1 ili noviji | C39: 246.00 € | D39: 61.50 € | E39: 307.50 €
A40: 0000039 | B40: Adobe Creative Suite 3 Design Standard, UPG s PS7, Il10, InD2 ili novijih | C40: 1,328.40 € | D40: 332.10 € | E40: 1,660.50 €
A41: 0000040 | B41: Adobe Creative Suite 3 Design Standard, UPG s PS7, Il10, InD2 ili novijih | C41: 738.00 € | D41: 184.50 € | E41: 922.50 €
A42: 0000041 | B42: Adobe Creative Suite 4 Design Standard | C42: 7,902.50 € | D42: 1,975.63 € | E42: 9,878.13 €
A43: 0000042 | B43: Adobe Creative Suite 4 Design Standard | C43: 9,720.94 € | D43: 2,430.23 € | E43: 12,151.17 €
A44: 0000043 | B44: Adobe CS 4 Web premium ESD | C44: 1,424.16 € | D44: 356.04 € | E44: 1,780.20 €
A45: 0000044 | B45: Adobe CS 4 Web premium ESD | C45: 2,806.93 € | D45: 701.73 € | E45: 3,508.66 €
A46: 0000045 | B46: Adobe Photoshop CS4 | C46: 3,058.27 € | D46: 764.57 € | E46: 3,822.84 €
A47: 0000046 | B47: Adobe Photoshop CS4 | C47: 1,387.23 € | D47: 346.81 € | E47: 1,734.04 €
A48: 0000047 | B48: Adria Topo topografska karta | C48: 1,900.10 € | D48: 475.03 € | E48: 2,375.13 €
A49: 0000048 | B49: AdriaRoute rut. karta (CDROM) | C49: 2,066.40 € | D49: 516.60 € | E49: 2,583.00 €
A50: 0000049 | B50: AdriaRoute rut. karta (SD Card) | C50: 4,122.55 € | D50: 1,030.64 € | E50: 5,153.19 €
A51: 0000050 | B51: Aiptek Pocket DV AHD 100, HD, 30 sl/s, 5 Mpix + 2GB SD card | C51: 581.07 € | D51: 145.27 € | E51: 726.34 €
A52: 0000051 | B52: Aiptek Pocket DV AHD 100, HD, 30 sl/s, 5 Mpix + 2GB SD card | C52: 527.42 € | D52: 131.86 € | E52: 659.28 €
A53: 0000052 | B53: Aiptek Pocket DV AHD 300, full HD, 30 sl/s, 5 Mpix + 2GB SD card | C53: 2,258.28 € | D53: 564.57 € | E53: 2,822.85 €
A54: 0000053 | B54: Aiptek Pocket DV AHD 300, full HD, 30 sl/s, 5 Mpix + 2GB SD card | C54: 696.05 € | D54: 174.01 € | E54: 870.06 €
A55: 0000054 | B55: Aiptek Pocket DV AHD Z500Plus, full HD, 30 sl/s, 5 Mpix + 4GB SD card + podvodno kućište 8m | C55: 1,289.67 € | D55: 322.42 € | E55: 1,612.09 €
A56: 0000055 | B56: Aiptek Pocket DV AHD Z500Plus, full HD, 30 sl/s, 5 Mpix + 4GB SD card + podvodno kućište 8m | C56: 351.65 € | D56: 87.91 € | E56: 439.56 €
A57: 0000056 | B57: AirLive 802.11G Wireless AP (WL-5450AP) | C57: 564.58 € | D57: 141.15 € | E57: 705.73 €
A58: 0000057 | B58: AirLive 802.11G Wireless AP (WL-5460AP) | C58: 505.70 € | D58: 126.43 € | E58: 632.13 €
A59: 0000058 | B59: AirLive 802.11G Wireless Router (WT-2000R) | C59: 837.20 € | D59: 209.30 € | E59: 1,046.50 €
A60: 0000059 | B60: AirLive ADSL Router 4 port (ARM-204-B) | C60: 700.89 € | D60: 175.22 € | E60: 876.11 €
A61: 0000060 | B61: AirLive ePhone-1000S (žični SIP IP telefon) | C61: 973.50 € | D61: 243.38 € | E61: 1,216.88 €
A62: 0000061 | B62: AirLive ePhone-2000S (žični SIP IP telefon) | C62: 559.74 € | D62: 139.94 € | E62: 699.68 €
A63: 0000062 | B63: AirLive OD-300CAM, IP kamera, vanjska, IR reflektor, PoE | C63: 773.48 € | D63: 193.37 € | E63: 966.85 €
A64: 0000063 | B64: AirLive POE-100CAM, IP kamera, PoE | C64: 1,119.49 € | D64: 279.87 € | E64: 1,399.36 €
A65: 0000064 | B65: AirLive POE-200CAM, IP kamera, PoE | C65: 1,050.94 € | D65: 262.73 € | E65: 1,313.67 €
A66: 0000065 | B66: Airlive Print server, 1x Paralel, 2x USB, 1x LAN 10/100 (P-203N) | C66: =E66/1.25 -> 710.57 € | D66: =E66-C66 -> 177.64 € | E66: 888.21 €
A67: 0000066 | B67: Airlive Print server, 1x USB, 1x LAN 10/100 (MFP-101U) | C67: 983.02 € | D67: 245.75 € | E67: 1,228.77 €
A68: 0000067 | B68: Airlive Print server, 1x USB, 1x LAN 10/100 (P-201U) | C68: 1,074.53 € | D68: 268.63 € | E68: 1,343.16 €
A69: 0000068 | B69: AirLive Skype Phone Gateway (SKY-211) | C69: 1,017.46 € | D69: 254.36 € | E69: 1,271.82 €
A70: 0000069 | B70: AirLive TP-1000, printer za WIAS-1200G | C70: 1,074.53 € | D70: 268.63 € | E70: 1,343.16 €
A71: 0000070 | B71: AirLive WIAS-1200G, Wireless internet access server | C71: 1,074.53 € | D71: 268.63 € | E71: 1,343.16 €
A72: 0000071 | B72: AirLive Wireless AP WHA-5500CPE-NT 802.11a/b/g, POE, outdoor | C72: 884.62 € | D72: 221.15 € | E72: 1,105.77 €
A73: 0000072 | B73: AirLive Wireless AP/Antena WH-5400CPE-ESD, 12dbi antena, POE | C73: 807.35 € | D73: 201.84 € | E73: 1,009.19 €
A74: 0000073 | B74: AirLive Wireless AP/Antena WHA-5500CPE, 802.11a, 18dbi, POE | C74: 1,217.09 € | D74: 304.27 € | E74: 1,521.36 €
A75: 0000074 | B75: AirLive WL-1200CAM, IP kamera, wireless | C75: 2,141.40 € | D75: 535.35 € | E75: 2,676.75 €
A76: 0000075 | B76: AirLive WL-1600USB 5dBi, Wireless 802.11g USB adapter | C76: 1,445.34 € | D76: 361.34 € | E76: 1,806.68 €
A77: 0000076 | B77: AirLive WL-2000CAM, IP kamera, wireless | C77: 1,703.44 € | D77: 425.86 € | E77: 2,129.30 €
A78: 0000077 | B78: AirLive WL-2600CAM, IP kamera, wireless, pan/tilt, nightvision | C78: 1,284.84 € | D78: 321.21 € | E78: 1,606.05 €
A79: 0000078 | B79: AirLive WL-5460CAM (WL-5460CAM) | C79: 671.05 € | D79: 167.76 € | E79: 838.81 €
A80: 0000079 | B80: AirLive WL-5460PCM (PCMCIA) WLAN 54MBps | C80: 383.76 € | D80: 95.94 € | E80: 479.70 €
A81: 0000080 | B81: AirLive WMU-6500FS, Wireless Network file server HD + Print Server, 2USB 2.0 port, 1*10/100, share USB directly | C81: 237.93 € | D81: 59.48 € | E81: 297.41 €
A82: 0000081 | B82: AirLive WT-2000PCI, PCI WLAN adapter 802.11b/g | C82: 344.02 € | D82: 86.01 € | E82: 430.03 €
A83: 0000082 | B83: Alat kliješta za krimpanje RJ45 konektora (OEM) | C83: 487.08 € | D83: 121.77 € | E83: 608.85 €
A84: 0000083 | B84: Alat za krimpanje RJ45 konektora (HT-2008R) | C84: 1,463.09 € | D84: 365.77 € | E84: 1,828.86 €
A85: 0000084 | B85: Alat za krimpanje RJ45 konektora (HT-L2182R) | C85: 247.97 € | D85: 61.99 € | E85: 309.96 €
A86: 0000085 | B86: Alat za krimpanje RJ45/RJ11 (8P/6P) konektora | C86: 369.98 € | D86: 92.50 € | E86: 462.48 €
A87: 0000086 | B87: Alat za parice (krone) | C87: 399.24 € | D87: 99.81 € | E87: 499.05 €
A88: 0000087 | B88: Antena 10dBi, 2.4GHz, omnidirekcijska, Airlive, indoor (WAI-101) | C88: 583.94 € | D88: 145.98 € | E88: 729.92 €
A89: 0000088 | B89: Antena 15dBi, 2.4GHz, omnidirekcijska, Airlive, outdoor, WAE2415GP | C89: 92.87 € | D89: 23.22 € | E89: 116.09 €
A90: 0000089 | B90: Antena 18dBi, 2.4GHz, usmjerena, Airlive, outdoor, panel (WAE-180PA) | C90: 14.76 € | D90: 3.69 € | E90: 18.45 €
A91: 0000090 | B91: Antena 23dBi, 5GHz, usmjerene, Airlive, outdoor, panel (WAE-5023PA) | C91: 12.79 € | D91: 3.20 € | E91: 15.99 €
A92: 0000091 | B92: Antena 24dBi, 2.4GHz, usmjerene, Airlive, outdoor, grid (WAE-2424GR) | C92: 5.58 € | D92: 1.40 € | E92: 6.98 €
A93: 0000092 | B93: Antena 5dBi, 2.4GHz, omnidirekcijska, Airlive, indoor (WAI-050) | C93: 5.59 € | D93: 1.40 € | E93: 6.99 €
A94: 0000093 | B94: Antena 8dBi, 2.4GHz, omnidirekcijska, Airlive, indoor (WAI-080) | C94: 211.56 € | D94: 52.89 € | E94: 264.45 €
A95: 0000094 | B95: Antena Satelitska - dodatak za drugi satelit, 85cm | C95: 270.60 € | D95: 67.65 € | E95: 338.25 €
A96: 0000095 | B96: Antena Satelitska - set za 1 satelit, 85cm | C96: 382.78 € | D96: 95.69 € | E96: 478.47 €
A97: 0000096 | B97: Antena VHF/UHF (kanali: 5-12, 21-96), logaritamska | C97: 392.62 € | D97: 98.15 € | E97: 490.77 €
A98: 0000097 | B98: Antenski filter, 4 ulaza, FM/VHF/UHF/UHF | C98: 669.12 € | D98: 167.28 € | E98: 836.40 €
A99: 0000098 | B99: Antenski kabel RF m/ž, 1.5m, bijeli | C99: 687.82 € | D99: 171.95 € | E99: 859.77 €
A100: 0000099 | B100: Antenski koax kabel 75 ohma >90dB, 64x0.12, promjer 6.8mm | C100: 773.42 € | D100: 193.36 € | E100: 966.78 €
A101: 0000100 | B101: Antenski nosač L, 25cm, Zn | C101: 966.29 € | D101: 241.57 € | E101: 1,207.86 €
A102: 0000101 | B102: Antenski nosač L, 46cm, Zn | C102: 1,535.04 € | D102: 383.76 € | E102: 1,918.80 €
A103: 0000102 | B103: AP9007 APC, PowerChute Plus For Windows,komplet sa kablom | C103: 1,092.24 € | D103: 273.06 € | E103: 1,365.30 €
A104: 0000103 | B104: APC StartUP (puštanje u rad) | C104: 884.62 € | D104: 221.15 € | E104: 1,105.77 €
A105: 0000104 | B105: APPLE iMac 20", Intel Core 2 Duo 2.4GHz, 1GB, 250GB, SD, ATI HD2400XT, Kbd, Mm, Rmt, mb323zh/a | C105: 1,081.42 € | D105: 270.35 € | E105: 1,351.77 €
A106: 0000105 | B106: APPLE iMac 20", Intel Core 2 Duo 2.66GHz, 2GB, 320GB, SD, ATI HD2600PRO, Kbd, Mm, Rmt (mb324zh/a) | C106: 1,611.79 € | D106: 402.95 € | E106: 2,014.74 €
A107: 0000106 | B107: APPLE iMac 20", Intel Core 2 Duo 2.66GHz, 2GB, 320GB, SD, nVidia GF9400M/256MB DDR3, Kbd, Mm, Rmt (mb417zh/a) | C107: 1,577.35 € | D107: 394.34 € | E107: 1,971.69 €
A108: 0000107 | B108: APPLE iMac 24", Intel Core 2 Duo 2.66GHz, 4GB/DDR3-1066, 640GB, SD, nVidia GF9400M/256MB DDR3, Kbd, Mm, Rmt (mb | C108: 3,049.42 € | D108: 762.35 € | E108: 3,811.77 €
A109: 0000108 | B109: APPLE iMac 24", Intel Core 2 Duo 2.93GHz, 4GB/DDR3-1066, 640GB, SD, nVidia GT120/256MB DDR3, Kbd, Mm, Rmt (mb41 | C109: 5,412.00 € | D109: 1,353.00 € | E109: 6,765.00 €
A110: 0000109 | B110: Apple IPod 160GB crni | C110: 1,397.28 € | D110: 349.32 € | E110: 1,746.60 €
A111: 0000110 | B111: Apple IPod 160GB srebrni | C111: 2,065.42 € | D111: 516.35 € | E111: 2,581.77 €
A112: 0000111 | B112: Apple IPod 80GB bijeli | C112: 2,951.02 € | D112: 737.75 € | E112: 3,688.77 €
A113: 0000112 | B113: Apple IPod nano 4GB, plavi | C113: 1,956.19 € | D113: 489.05 € | E113: 2,445.24 €
A114: 0000113 | B114: APPLE Mac Mini, Intel Core 2 Duo 2.0GHz, 1GB/DDR2-667, 120GB/5400, Intel GMA950, Kbd, Mm (mb139zh/a) | C114: 1,179.82 € | D114: 294.95 € | E114: 1,474.77 €
A115: 0000114 | B115: APPLE MacBook Pro 15" 2.4GHz /2GB/250GB/GeForce 9600M GT/SD, Localized (z0fz0027m/cr) | C115: 1,476.00 € | D115: 369.00 € | E115: 1,845.00 €
A116: 0000115 | B116: APPLE MacBook Pro 15" 2.53GHz /4GB/320GB/GeForce 9600M GT/SD, Localized (z0g0003fl/cr) | C116: 2,459.02 € | D116: 614.75 € | E116: 3,073.77 €
A117: 0000116 | B117: APPLE MacBook Pro 17" LED 1920x1200, 2.66GHz, 4GB DDR3-1066, 320GB/4500, GeForce 9600M GT/256MB DDR3, Localized | C117: 127.92 € | D117: 31.98 € | E117: 159.90 €
A118: 0000117 | B118: Asus WL-520GU/13/P, wireless router, 1x WAN, 4x LAN, WLAN 802.11b/g (90-IBM002M00-01PZ) | C118: 157.44 € | D118: 39.36 € | E118: 196.80 €
A119: 0000118 | B119: AutoCAD 2006 LT | C119: 364.08 € | D119: 91.02 € | E119: 455.10 €
A120: 0000119 | B120: AutoCAD 2006 LT | C120: 383.76 € | D120: 95.94 € | E120: 479.70 €
A121: 0000120 | B121: AutoCAD 2009 LT | C121: 403.44 € | D121: 100.86 € | E121: 504.30 €
A122: 0000121 | B122: AutoCAD 2009 LT | C122: 462.48 € | D122: 115.62 € | E122: 578.10 €
A123: 0000122 | B123: AVG Anti-Virus (1 licenca, 2 godine) | C123: 492.00 € | D123: 123.00 € | E123: 615.00 €
A124: 0000123 | B124: AVG Anti-Virus (1 licenca, 2 godine) | C124: 738.00 € | D124: 184.50 € | E124: 922.50 €
A125: 0000124 | B125: AVG Anti-Virus (10 licence, 2 godine) | C125: 903.31 € | D125: 225.83 € | E125: 1,129.14 €
A126: 0000125 | B126: AVG Anti-Virus (10 licence, 2 godine) | C126: 1,201.46 € | D126: 300.37 € | E126: 1,501.83 €
A127: 0000126 | B127: AVG Anti-Virus (2 licence, 2 godine) | C127: 1,406.14 € | D127: 351.53 € | E127: 1,757.67 €
A128: 0000127 | B128: AVG Anti-Virus (2 licence, 2 godine) | C128: 877.73 € | D128: 219.43 € | E128: 1,097.16 €
A129: 0000128 | B129: AVG Anti-Virus (3 licence, 2 godine) | C129: 1,063.70 € | D129: 265.93 € | E129: 1,329.63 €
A130: 0000129 | B130: AVG Anti-Virus (3 licence, 2 godine) | C130: =E130/1.25 -> 271.68 € | D130: =E130-C130 -> 67.92 € | E130: 339.60 €
A131: 0000130 | B131: AVG Anti-Virus (5 licence, 2 godine) | C131: 305.04 € | D131: 76.26 € | E131: 381.30 €
A132: 0000131 | B132: AVG Anti-Virus (5 licence, 2 godine) | C132: 238.13 € | D132: 59.53 € | E132: 297.66 €
A133: 0000132 | B133: AVG Anti-virus Network Edition (10 licenci, 2 godine update) | C133: 300.12 € | D133: 75.03 € | E133: 375.15 €
A134: 0000133 | B134: AVG Anti-virus Network Edition (10 licenci, 2 godine update) | C134: 126.94 € | D134: 31.73 € | E134: 158.67 €
A135: 0000134 | B135: AVG Anti-virus Network Edition (100 licenci, 2 godine update) | C135: 77.19 € | D135: 19.30 € | E135: 96.49 €
A136: 0000135 | B136: AVG Anti-virus Network Edition (100 licenci, 2 godine update) | C136: 25.54 € | D136: 6.38 € | E136: 31.92 €
A137: 0000136 | B137: AVG Anti-virus Network Edition (15 licenci, 2 godine update) | C137: 163.84 € | D137: 40.96 € | E137: 204.80 €
A138: 0000137 | B138: AVG Anti-virus Network Edition (15 licenci, 2 godine update) | C138: 263.14 € | D138: 65.78 € | E138: 328.92 €
A139: 0000138 | B139: AVG Anti-virus Network Edition (2 licence, 2 godine update) | C139: 382.29 € | D139: 95.57 € | E139: 477.86 €
A140: 0000139 | B140: AVG Anti-virus Network Edition (2 licence, 2 godine update) | C140: 595.32 € | D140: 148.83 € | E140: 744.15 €
A141: 0000140 | B141: AVG Anti-virus Network Edition (20 licenci, 2 godine update) | C141: 127.92 € | D141: 31.98 € | E141: 159.90 €
A142: 0000141 | B142: AVG Anti-virus Network Edition (20 licenci, 2 godine update) | C142: 186.96 € | D142: 46.74 € | E142: 233.70 €
A143: 0000142 | B143: AVG Anti-virus Network Edition (25 licenci, 2 godine update) | C143: 344.40 € | D143: 86.10 € | E143: 430.50 €
A144: 0000143 | B144: AVG Anti-virus Network Edition (25 licenci, 2 godine update) | C144: 954.48 € | D144: 238.62 € | E144: 1,193.10 €
A145: 0000144 | B145: AVG Anti-virus Network Edition (3 licence, 2 godine update) | C145: 3,877.46 € | D145: 969.36 € | E145: 4,846.82 €
A146: 0000145 | B146: AVG Anti-virus Network Edition (3 licence, 2 godine update) | C146: 7,645.68 € | D146: 1,911.42 € | E146: 9,557.10 €
A147: 0000146 | B147: AVG Anti-virus Network Edition (30 licenci, 2 godine update) | C147: 137.60 € | D147: 34.40 € | E147: 172.00 €
A148: 0000147 | B148: AVG Anti-virus Network Edition (30 licenci, 2 godine update) | C148: 265.68 € | D148: 66.42 € | E148: 332.10 €
A149: 0000148 | B149: AVG Anti-virus Network Edition (40 licenci, 2 godine update) | C149: 275.20 € | D149: 68.80 € | E149: 344.00 €
A150: 0000149 | B150: AVG Anti-virus Network Edition (40 licenci, 2 godine update) | C150: 610.08 € | D150: 152.52 € | E150: 762.60 €
A151: 0000150 | B151: AVG Anti-virus Network Edition (5 licenci, 2 godine update) | C151: 1,170.96 € | D151: 292.74 € | E151: 1,463.70 €
A152: 0000151 | B152: AVG Anti-virus Network Edition (5 licenci, 2 godine update) | C152: 1,820.40 € | D152: 455.10 € | E152: 2,275.50 €
A153: 0000152 | B153: AVG Anti-virus Network Edition (50 licenci, 2 godine update) | C153: 1,328.40 € | D153: 332.10 € | E153: 1,660.50 €
A154: 0000153 | B154: AVG Anti-virus Network Edition (50 licenci, 2 godine update) | C154: 2,558.40 € | D154: 639.60 € | E154: 3,198.00 €
A155: 0000154 | B155: AVG Anti-virus Network Edition (75 licenci, 2 godine update) | C155: 738.00 € | D155: 184.50 € | E155: 922.50 €
A156: 0000155 | B156: AVG Anti-virus Network Edition (75 licenci, 2 godine update) | C156: 421.15 € | D156: 105.29 € | E156: 526.44 €
A157: 0000156 | B157: AVG Anti-Virus plus firewall (1 licenca, 2 godine) | C157: 127.92 € | D157: 31.98 € | E157: 159.90 €
A158: 0000157 | B158: AVG Anti-Virus plus firewall (1 licenca, 2 godine) | C158: 102.34 € | D158: 25.58 € | E158: 127.92 €
A159: 0000158 | B159: AVG Anti-Virus plus firewall (2 licence, 2 godine) | C159: 191.88 € | D159: 47.97 € | E159: 239.85 €
A160: 0000159 | B160: AVG Anti-Virus plus firewall (2 licence, 2 godine) | C160: 226.32 € | D160: 56.58 € | E160: 282.90 €
A161: 0000160 | B161: AVG Anti-Virus plus firewall (3 licence, 2 godine) | C161: 255.84 € | D161: 63.96 € | E161: 319.80 €
A162: 0000161 | B162: AVG Anti-Virus plus firewall (3 licence, 2 godine) | C162: 108.07 € | D162: 27.02 € | E162: 135.09 €
A163: 0000162 | B163: AVG Anti-Virus plus firewall (5 licenci, 2 godine) | C163: 206.64 € | D163: 51.66 € | E163: 258.30 €
A164: 0000163 | B164: AVG Anti-Virus plus firewall (5 licenci, 2 godine) | C164: 305.04 € | D164: 76.26 € | E164: 381.30 €
A165: 0000164 | B165: AVG Anti-Virus Professional Edition for Linux/FreeBSD (1 licenca, 2 godine update) | C165: 857.06 € | D165: 214.27 € | E165: 1,071.33 €
A166: 0000165 | B166: AVG Anti-Virus Professional Edition for Linux/FreeBSD (1 licenca, 2 godine update) | C166: 604.18 € | D166: 151.04 € | E166: 755.22 €
A167: 0000166 | B167: AVG Anti-Virus Professional Edition for Linux/FreeBSD (2 licence, 2 godine update) | C167: 603.19 € | D167: 150.80 € | E167: 753.99 €
A168: 0000167 | B168: AVG Anti-Virus Professional Edition for Linux/FreeBSD (2 licence, 2 godine update) | C168: 1,082.40 € | D168: 270.60 € | E168: 1,353.00 €
A169: 0000168 | B169: AVG Anti-Virus Professional Edition for Linux/FreeBSD (3 licence, 2 godine update) | C169: 334.56 € | D169: 83.64 € | E169: 418.20 €
A170: 0000169 | B170: AVG Anti-Virus Professional Edition for Linux/FreeBSD (3 licence, 2 godine update) | C170: 137.76 € | D170: 34.44 € | E170: 172.20 €
A171: 0000170 | B171: AVG Anti-Virus Professional Edition for Linux/FreeBSD (5 licenci, 2 godine update) | C171: 262.73 € | D171: 65.68 € | E171: 328.41 €
A172: 0000171 | B172: AVG Anti-Virus Professional Edition for Linux/FreeBSD (5 licenci, 2 godine update) | C172: 265.68 € | D172: 66.42 € | E172: 332.10 €
A173: 0000172 | B173: AVG Email Server Edition (10 mailboxova, 2 godine update) | C173: 294.22 € | D173: 73.55 € | E173: 367.77 €
A174: 0000173 | B174: AVG Email Server Edition (10 mailboxova, 2 godine update) | C174: 423.12 € | D174: 105.78 € | E174: 528.90 €
A175: 0000174 | B175: AVG Email Server Edition (100 mailboxova, 2 godine update) | C175: 738.00 € | D175: 184.50 € | E175: 922.50 €
A176: 0000175 | B176: AVG Email Server Edition (100 mailboxova, 2 godine update) | C176: 708.48 € | D176: 177.12 € | E176: 885.60 €
A177: 0000176 | B177: AVG Email Server Edition (15 mailboxova, 2 godine update) | C177: 209.59 € | D177: 52.40 € | E177: 261.99 €
A178: 0000177 | B178: AVG Email Server Edition (15 mailboxova, 2 godine update) | C178: 411.31 € | D178: 102.83 € | E178: 514.14 €
A179: 0000178 | B179: AVG Email Server Edition (20 mailboxova, 2 godine update) | C179: 442.80 € | D179: 110.70 € | E179: 553.50 €
A180: 0000179 | B180: AVG Email Server Edition (20 mailboxova, 2 godine update) | C180: 738.00 € | D180: 184.50 € | E180: 922.50 €
A181: 0000180 | B181: AVG Email Server Edition (25 mailboxova, 2 godine update) | C181: 767.52 € | D181: 191.88 € | E181: 959.40 €
A182: 0000181 | B182: AVG Email Server Edition (25 mailboxova, 2 godine update) | C182: 915.12 € | D182: 228.78 € | E182: 1,143.90 €
A183: 0000182 | B183: AVG Email Server Edition (30 mailboxova, 2 godine update) | C183: 950.54 € | D183: 237.64 € | E183: 1,188.18 €
A184: 0000183 | B184: AVG Email Server Edition (30 mailboxova, 2 godine update) | C184: 146.62 € | D184: 36.65 € | E184: 183.27 €
A185: 0000184 | B185: AVG Email Server Edition (40 mailboxova, 2 godine update) | C185: 216.48 € | D185: 54.12 € | E185: 270.60 €
A186: 0000185 | B186: AVG Email Server Edition (40 mailboxova, 2 godine update) | C186: 285.36 € | D186: 71.34 € | E186: 356.70 €
A187: 0000186 | B187: AVG Email Server Edition (5 mailboxova, 2 godine update) | C187: 432.96 € | D187: 108.24 € | E187: 541.20 €
A188: 0000187 | B188: AVG Email Server Edition (5 mailboxova, 2 godine update) | C188: 83.44 € | D188: 20.86 € | E188: 104.30 €
A189: 0000188 | B189: AVG Email Server Edition (50 mailboxova, 2 godine update) | C189: 128.90 € | D189: 32.23 € | E189: 161.13 €
A190: 0000189 | B190: AVG Email Server Edition (50 mailboxova, 2 godine update) | C190: 73.80 € | D190: 18.45 € | E190: 92.25 €
A191: 0000190 | B191: AVG Email Server Edition (75 mailboxova, 2 godine update) | C191: 97.42 € | D191: 24.35 € | E191: 121.77 €
A192: 0000191 | B192: AVG Email Server Edition (75 mailboxova, 2 godine update) | C192: 147.60 € | D192: 36.90 € | E192: 184.50 €
A193: 0000192 | B193: AVG Email Server for Linux/FreeBSD (1 poslužitelj, 2 godine update) | C193: 511.68 € | D193: 127.92 € | E193: 639.60 €
A194: 0000193 | B194: AVG Email Server for Linux/FreeBSD (1 poslužitelj, 2 godine update) | C194: =E194/1.25 -> 226.32 € | D194: =E194-C194 -> 56.58 € | E194: 282.90 €
A195: 0000194 | B195: AVG Email Server for Linux/FreeBSD (10 mailboxova, 2 godine update) | C195: 108.24 € | D195: 27.06 € | E195: 135.30 €
A196: 0000195 | B196: AVG Email Server for Linux/FreeBSD (10 mailboxova, 2 godine update) | C196: 127.92 € | D196: 31.98 € | E196: 159.90 €
A197: 0000196 | B197: AVG Email Server for Linux/FreeBSD (2 poslužitelja, 2 godine update) | C197: 137.09 € | D197: 34.27 € | E197: 171.36 €
A198: 0000197 | B198: AVG Email Server for Linux/FreeBSD (2 poslužitelja, 2 godine update) | C198: 68.88 € | D198: 17.22 € | E198: 86.10 €
A199: 0000198 | B199: AVG Email Server for Linux/FreeBSD (25 mailboxova, 2 godine update) | C199: 68.88 € | D199: 17.22 € | E199: 86.10 €
A200: 0000199 | B200: AVG Email Server for Linux/FreeBSD (25 mailboxova, 2 godine update) | C200: 108.24 € | D200: 27.06 € | E200: 135.30 €
... 4678 more rows

Sheet Info o kreditima
A1: Informacije o kreditima
A2: Šifra | B2: Naziv | C2: Mjesto 1 | D2: Mjesto 2 | E2: Posl/Isp | F2: Kredit | G2: Datum | H2: Godina | I2: Mjesec | J2: IZNOS | M2: Šifrarnik
A3: 106 | F3: devizni | G3: 2000-03-11 | J3: 3,600.00 € | M3: Šifra | N3: Naziv | O3: Posl/Isp | P3: Mjesto 1 | Q3: Mjesto 2
A4: 109 | F4: potrošački | G4: 2002-11-09 | J4: 1,100.00 € | M4: 106 | N4: Poslovnica 03 | O4: Poslovnica | P4: Jastrebarsko | Q4: Izvan Zagreba
A5: 119 | F5: robni | G5: 2001-01-09 | J5: 3,800.00 € | M5: 109 | N5: Poslovnica 07 | O5: Poslovnica | P5: Samobor | Q5: Izvan Zagreba
A6: 132 | F6: posebni | G6: 2002-07-05 | J6: 4,900.00 € | M6: 119 | N6: Poslovnica 13 | O6: Poslovnica | P6: Sesvete | Q6: Izvan Zagreba
A7: 108 | F7: devizni | G7: 1999-07-04 | J7: 2,000.00 € | M7: 132 | N7: Poslovnica 15 | O7: Poslovnica | P7: V. Gorica | Q7: Izvan Zagreba
A8: 116 | F8: robni | G8: 2001-07-20 | J8: 2,000.00 € | M8: 108 | N8: Poslovnica 05 | O8: Poslovnica | P8: Zagreb | Q8: Zapad
A9: 117 | F9: dugoročni | G9: 2002-03-17 | J9: 1,600.00 € | M9: 116 | N9: Poslovnica 06 | O9: Poslovnica | P9: Zagreb | Q9: Centar
A10: 120 | F10: potrošački | G10: 2002-05-25 | J10: 3,800.00 € | M10: 117 | N10: Poslovnica 04 | O10: Poslovnica | P10: Zagreb | Q10: Centar
A11: 182 | F11: kratkoročni | G11: 2001-01-14 | J11: 4,000.00 € | M11: 120 | N11: Poslovnica 14 | O11: Poslovnica | P11: Zagreb | Q11: Jug
A12: 183 | F12: robni | G12: 2002-05-16 | J12: 1,800.00 € | M12: 182 | N12: Poslovnica 11 | O12: Poslovnica | P12: Zagreb | Q12: Istok
A13: 184 | F13: dugoročni | G13: 2003-01-05 | J13: 3,200.00 € | M13: 183 | N13: Poslovnica 08 | O13: Poslovnica | P13: Zagreb | Q13: Istok
A14: 1001 | F14: dugoročni | G14: 2002-05-17 | J14: 4,800.00 € | M14: 184 | N14: Poslovnica 01 | O14: Poslovnica | P14: Zagreb | Q14: Centar
A15: 1002 | F15: potrošački | G15: 2002-02-10 | J15: 1,400.00 € | M15: 1001 | N15: Poslovnica 16 | O15: Ispostava | P15: Zagreb | Q15: Istok
A16: 1003 | F16: devizni | G16: 2004-05-04 | J16: 3,000.00 € | M16: 1002 | N16: Poslovnica 09 | O16: Ispostava | P16: Zagreb | Q16: Zapad
A17: 1004 | F17: robni | G17: 2001-07-17 | J17: 1,200.00 € | M17: 1003 | N17: Poslovnica 10 | O17: Ispostava | P17: Zagreb | Q17: Sjever
A18: 1005 | F18: dugoročni | G18: 1999-08-27 | J18: 3,800.00 € | M18: 1004 | N18: Poslovnica 02 | O18: Ispostava | P18: Zagreb | Q18: Jug
A19: 119 | F19: devizni | G19: 2004-06-04 | J19: 1,200.00 € | M19: 1005 | N19: Poslovnica 12 | O19: Ispostava | P19: Zagreb | Q19: Sjever
A20: 1003 | F20: potrošački | G20: 2000-11-15 | J20: 4,300.00 €
A21: 184 | F21: dugoročni | G21: 2004-03-19 | J21: 2,300.00 €
A22: 1005 | F22: potrošački | G22: 2004-09-10 | J22: 1,200.00 €
A23: 1003 | F23: devizni | G23: 2000-07-24 | J23: 3,200.00 €
A24: 183 | F24: robni | G24: 2000-05-08 | J24: 1,800.00 €
A25: 106 | F25: dugoročni | G25: 2002-02-15 | J25: 3,400.00 €
A26: 108 | F26: devizni | G26: 2000-03-11 | J26: 4,000.00 €
A27: 119 | F27: potrošački | G27: 1999-11-27 | J27: 4,300.00 €
A28: 183 | F28: robni | G28: 2001-05-05 | J28: 4,800.00 €
A29: 108 | F29: robni | G29: 2002-03-08 | J29: 4,600.00 €
A30: 108 | F30: posebni | G30: 2003-02-02 | J30: 4,500.00 €
A31: 106 | F31: devizni | G31: 2004-02-19 | J31: 3,300.00 €
A32: 117 | F32: robni | G32: 2002-11-29 | J32: 2,300.00 €
A33: 108 | F33: devizni | G33: 2000-10-14 | J33: 2,800.00 €
A34: 108 | F34: potrošački | G34: 2004-04-15 | J34: 1,800.00 €
A35: 1004 | F35: dugoročni | G35: 2002-07-21 | J35: 4,600.00 €
A36: 132 | F36: potrošački | G36: 1999-12-25 | J36: 4,900.00 €
A37: 132 | F37: devizni | G37: 2003-10-21 | J37: 1,700.00 €
A38: 108 | F38: robni | G38: 1999-05-15 | J38: 1,600.00 €
A39: 183 | F39: dugoročni | G39: 2001-11-05 | J39: 3,700.00 €
A40: 184 | F40: devizni | G40: 2002-07-05 | J40: 4,600.00 €
A41: 120 | F41: potrošački | G41: 2001-03-22 | J41: 3,200.00 €
A42: 1002 | F42: robni | G42: 2000-05-09 | J42: 2,800.00 €
A43: 106 | F43: robni | G43: 2001-12-01 | J43: 2,500.00 €
A44: 183 | F44: posebni | G44: 2001-07-12 | J44: 3,100.00 €
A45: 116 | F45: devizni | G45: 2002-06-16 | J45: 3,800.00 €
A46: 183 | F46: robni | G46: 2002-11-01 | J46: 2,700.00 €
A47: 119 | F47: devizni | G47: 2000-12-24 | J47: 1,300.00 €
A48: 184 | F48: potrošački | G48: 2004-08-03 | J48: 2,600.00 €
A49: 108 | F49: dugoročni | G49: 2001-03-29 | J49: 1,900.00 €
A50: 1005 | F50: potrošački | G50: 2002-11-12 | J50: 3,200.00 €
A51: 184 | F51: devizni | G51: 2002-03-13 | J51: 1,300.00 €
A52: 119 | F52: robni | G52: 1999-02-05 | J52: 1,500.00 €
A53: 119 | F53: dugoročni | G53: 2003-10-16 | J53: 4,300.00 €
A54: 117 | F54: devizni | G54: 2000-07-02 | J54: 3,900.00 €
A55: 1001 | F55: potrošački | G55: 2004-09-27 | J55: 5,000.00 €
A56: 1001 | F56: robni | G56: 2000-12-26 | J56: 4,500.00 €
A57: 109 | F57: robni | G57: 2004-05-03 | J57: 2,200.00 €
A58: 120 | F58: posebni | G58: 2001-03-20 | J58: 4,300.00 €
A59: 109 | F59: devizni | G59: 2004-11-03 | J59: 4,400.00 €
A60: 182 | F60: robni | G60: 1999-12-19 | J60: 2,100.00 €
A61: 182 | F61: devizni | G61: 2002-07-18 | J61: 3,400.00 €
A62: 106 | F62: potrošački | G62: 2002-04-23 | J62: 1,200.00 €
A63: 109 | F63: dugoročni | G63: 2001-06-07 | J63: 4,400.00 €
A64: 182 | F64: potrošački | G64: 2004-06-09 | J64: 2,800.00 €
A65: 109 | F65: devizni | G65: 2001-11-29 | J65: 3,800.00 €
A66: 132 | F66: robni | G66: 1999-09-30 | J66: 2,400.00 €
A67: 182 | F67: dugoročni | G67: 2001-04-25 | J67: 1,100.00 €
A68: 116 | F68: devizni | G68: 2000-12-10 | J68: 3,900.00 €
A69: 116 | F69: potrošački | G69: 2002-03-25 | J69: 2,300.00 €
A70: 1003 | F70: robni | G70: 2002-02-21 | J70: 1,700.00 €
A71: 183 | F71: robni | G71: 2003-05-30 | J71: 2,900.00 €
A72: 119 | F72: posebni | G72: 2000-05-05 | J72: 2,800.00 €
A73: 117 | F73: devizni | G73: 2002-09-05 | J73: 4,500.00 €
A74: 117 | F74: robni | G74: 1999-06-12 | J74: 2,500.00 €
A75: 1001 | F75: devizni | G75: 2002-06-12 | J75: 2,400.00 €
A76: 116 | F76: potrošački | G76: 2004-07-03 | J76: 3,800.00 €
A77: 1001 | F77: dugoročni | G77: 2004-10-02 | J77: 1,500.00 €
A78: 183 | F78: potrošački | G78: 1999-11-05 | J78: 3,900.00 €
A79: 1005 | F79: devizni | G79: 2002-08-07 | J79: 1,400.00 €
A80: 1001 | F80: robni | G80: 2001-01-04 | J80: 3,200.00 €
A81: 182 | F81: dugoročni | G81: 2002-01-22 | J81: 3,500.00 €
A82: 1005 | F82: devizni | G82: 2002-07-12 | J82: 3,600.00 €
A83: 120 | F83: potrošački | G83: 2004-05-26 | J83: 2,700.00 €
A84: 106 | F84: robni | G84: 2003-08-07 | J84: 1,800.00 €
A85: 1003 | F85: robni | G85: 2002-08-03 | J85: 2,100.00 €
A86: 108 | F86: posebni | G86: 2001-03-12 | J86: 3,800.00 €
A87: 1003 | F87: devizni | G87: 2000-05-01 | J87: 3,700.00 €
A88: 184 | F88: robni | G88: 2000-04-06 | J88: 4,300.00 €
A89: 182 | F89: devizni | G89: 2004-03-04 | J89: 1,300.00 €
A90: 1005 | F90: potrošački | G90: 2001-01-28 | J90: 1,900.00 €
A91: 1001 | F91: dugoročni | G91: 2004-09-26 | J91: 3,600.00 €
A92: 117 | F92: potrošački | G92: 2003-11-29 | J92: 2,500.00 €
A93: 183 | F93: devizni | G93: 2004-07-15 | J93: 3,600.00 €
A94: 109 | F94: robni | G94: 2002-10-31 | J94: 4,100.00 €
A95: 108 | F95: dugoročni | G95: 2002-11-25 | J95: 2,200.00 €
A96: 1003 | F96: devizni | G96: 2003-05-24 | J96: 4,500.00 €
A97: 132 | F97: potrošački | G97: 2003-10-03 | J97: 3,700.00 €
A98: 1005 | F98: robni | G98: 2002-12-22 | J98: 2,500.00 €
A99: 1001 | F99: robni | G99: 2000-10-19 | J99: 2,500.00 €
A100: 117 | F100: posebni | G100: 2003-02-26 | J100: 1,300.00 €
A101: 109 | F101: devizni | G101: 2004-03-20 | J101: 3,200.00 €
A102: 182 | F102: robni | G102: 2002-07-12 | J102: 3,700.00 €
A103: 106 | F103: devizni | G103: 2000-07-20 | J103: 4,500.00 €
A104: 109 | F104: potrošački | G104: 2003-06-27 | J104: 4,300.00 €
A105: 109 | F105: dugoročni | G105: 2003-08-25 | J105: 2,400.00 €
A106: 1005 | F106: potrošački | G106: 2002-12-19 | J106: 4,500.00 €
A107: 182 | F107: devizni | G107: 1999-03-08 | J107: 3,900.00 €
A108: 116 | F108: robni | G108: 2001-10-18 | J108: 4,700.00 €
A109: 109 | F109: dugoročni | G109: 1999-08-27 | J109: 2,300.00 €
A110: 120 | F110: devizni | G110: 2001-08-16 | J110: 2,400.00 €
A111: 1003 | F111: potrošački | G111: 2004-02-08 | J111: 4,000.00 €
A112: 109 | F112: robni | G112: 2001-12-14 | J112: 1,300.00 €
A113: 1002 | F113: robni | G113: 2002-02-13 | J113: 2,000.00 €
A114: 183 | F114: posebni | G114: 1999-05-10 | J114: 1,500.00 €
A115: 132 | F115: devizni | G115: 2000-09-23 | J115: 3,000.00 €
A116: 109 | F116: robni | G116: 2004-07-08 | J116: 3,000.00 €
A117: 132 | F117: devizni | G117: 2001-07-01 | J117: 3,700.00 €
A118: 182 | F118: potrošački | G118: 2004-03-30 | J118: 3,700.00 €
A119: 1004 | F119: dugoročni | G119: 2003-08-27 | J119: 3,500.00 €
A120: 109 | F120: potrošački | G120: 2002-02-08 | J120: 4,800.00 €
A121: 183 | F121: devizni | G121: 2003-01-22 | J121: 4,800.00 €
A122: 132 | F122: robni | G122: 2003-07-16 | J122: 1,700.00 €
A123: 132 | F123: dugoročni | G123: 2000-05-09 | J123: 2,800.00 €
A124: 1004 | F124: devizni | G124: 2002-05-29 | J124: 2,900.00 €
A125: 116 | F125: potrošački | G125: 2004-01-17 | J125: 2,100.00 €
A126: 184 | F126: robni | G126: 1999-03-29 | J126: 2,100.00 €
A127: 106 | F127: robni | G127: 2001-03-06 | J127: 1,800.00 €
A128: 1003 | F128: posebni | G128: 2002-12-04 | J128: 1,600.00 €
A129: 108 | F129: devizni | G129: 1999-11-03 | J129: 4,300.00 €
A130: 1001 | F130: robni | G130: 2004-11-25 | J130: 3,700.00 €
A131: 182 | F131: devizni | G131: 2001-03-03 | J131: 4,000.00 €
A132: 182 | F132: potrošački | G132: 2003-05-25 | J132: 4,900.00 €
A133: 1002 | F133: dugoročni | G133: 2004-04-15 | J133: 3,000.00 €
A134: 106 | F134: potrošački | G134: 2002-09-26 | J134: 1,000.00 €
A135: 1005 | F135: devizni | G135: 2002-11-10 | J135: 3,800.00 €
A136: 1003 | F136: robni | G136: 1999-03-03 | J136: 2,400.00 €
A137: 117 | F137: dugoročni | G137: 2003-10-01 | J137: 4,800.00 €
A138: 184 | F138: devizni | G138: 2004-10-17 | J138: 1,900.00 €
A139: 184 | F139: potrošački | G139: 2001-01-08 | J139: 3,000.00 €
A140: 109 | F140: robni | G140: 2002-10-11 | J140: 3,100.00 €
A141: 108 | F141: robni | G141: 2000-01-23 | J141: 4,600.00 €
A142: 119 | F142: posebni | G142: 2004-02-03 | J142: 1,200.00 €
A143: 1001 | F143: devizni | G143: 1999-05-03 | J143: 3,200.00 €
A144: 182 | F144: robni | G144: 2001-02-12 | J144: 1,100.00 €
A145: 109 | F145: devizni | G145: 2003-08-17 | J145: 2,900.00 €
A146: 117 | F146: potrošački | G146: 2001-10-25 | J146: 2,700.00 €
A147: 182 | F147: dugoročni | G147: 2001-02-11 | J147: 1,800.00 €
A148: 182 | F148: potrošački | G148: 2001-08-14 | J148: 1,300.00 €
A149: 117 | F149: devizni | G149: 1999-09-19 | J149: 1,600.00 €
A150: 120 | F150: robni | G150: 1999-11-10 | J150: 3,100.00 €
A151: 1002 | F151: dugoročni | G151: 2001-11-14 | J151: 2,200.00 €
A152: 108 | F152: devizni | G152: 2002-03-14 | J152: 1,400.00 €
A153: 182 | F153: potrošački | G153: 2001-05-14 | J153: 2,300.00 €
A154: 119 | F154: robni | G154: 1999-02-25 | J154: 3,400.00 €
A155: 1002 | F155: robni | G155: 1999-10-30 | J155: 3,200.00 €
A156: 184 | F156: posebni | G156: 1999-10-05 | J156: 4,300.00 €
A157: 1001 | F157: devizni | G157: 2003-09-19 | J157: 3,700.00 €
A158: 109 | F158: robni | G158: 2003-09-19 | J158: 3,600.00 €
A159: 116 | F159: devizni | G159: 2001-01-04 | J159: 1,400.00 €
A160: 182 | F160: potrošački | G160: 1999-11-23 | J160: 3,400.00 €
A161: 120 | F161: dugoročni | G161: 2004-07-12 | J161: 4,600.00 €
A162: 1001 | F162: potrošački | G162: 2003-08-16 | J162: 2,700.00 €
A163: 120 | F163: devizni | G163: 2002-06-14 | J163: 4,500.00 €
A164: 183 | F164: robni | G164: 1999-10-10 | J164: 4,900.00 €
A165: 182 | F165: dugoročni | G165: 2001-08-27 | J165: 1,400.00 €
A166: 1004 | F166: devizni | G166: 2002-03-03 | J166: 4,400.00 €
A167: 183 | F167: potrošački | G167: 2003-05-02 | J167: 2,200.00 €
A168: 132 | F168: robni | G168: 2003-07-24 | J168: 4,300.00 €
A169: 119 | F169: robni | G169: 1999-01-28 | J169: 4,700.00 €
A170: 184 | F170: posebni | G170: 2001-09-02 | J170: 1,200.00 €
A171: 183 | F171: devizni | G171: 1999-11-21 | J171: 3,300.00 €
A172: 1005 | F172: robni | G172: 2002-08-17 | J172: 4,800.00 €
A173: 1005 | F173: devizni | G173: 2004-01-17 | J173: 4,600.00 €
A174: 108 | F174: potrošački | G174: 2002-07-04 | J174: 4,700.00 €
A175: 116 | F175: dugoročni | G175: 2002-04-17 | J175: 3,500.00 €
A176: 106 | F176: potrošački | G176: 2003-02-05 | J176: 1,400.00 €
A177: 182 | F177: devizni | G177: 2000-10-30 | J177: 4,000.00 €
A178: 184 | F178: robni | G178: 2000-03-08 | J178: 1,400.00 €
A179: 117 | F179: dugoročni | G179: 2002-05-11 | J179: 4,900.00 €
A180: 108 | F180: devizni | G180: 2004-04-20 | J180: 3,600.00 €
A181: 119 | F181: potrošački | G181: 2002-05-17 | J181: 4,200.00 €
A182: 1004 | F182: robni | G182: 2003-10-30 | J182: 4,000.00 €
A183: 1004 | F183: robni | G183: 2004-11-30 | J183: 4,200.00 €
A184: 109 | F184: posebni | G184: 2001-04-17 | J184: 3,600.00 €
A185: 119 | F185: devizni | G185: 2003-02-25 | J185: 4,300.00 €
A186: 119 | F186: robni | G186: 2004-09-09 | J186: 2,300.00 €
A187: 184 | F187: devizni | G187: 2004-09-28 | J187: 1,700.00 €
A188: 116 | F188: potrošački | G188: 1999-02-01 | J188: 4,500.00 €
A189: 1003 | F189: dugoročni | G189: 2004-11-26 | J189: 1,900.00 €
A190: 117 | F190: potrošački | G190: 1999-11-16 | J190: 2,000.00 €
A191: 1005 | F191: devizni | G191: 2002-09-19 | J191: 3,600.00 €
A192: 184 | F192: robni | G192: 2000-03-27 | J192: 3,600.00 €
A193: 120 | F193: dugoročni | G193: 2004-11-20 | J193: 1,500.00 €
A194: 183 | F194: devizni | G194: 2004-12-12 | J194: 2,200.00 €
A195: 182 | F195: potrošački | G195: 2001-04-08 | J195: 4,200.00 €
A196: 182 | F196: robni | G196: 2005-01-01 | J196: 4,700.00 €
A197: 182 | F197: robni | G197: 1999-09-18 | J197: 3,700.00 €
A198: 182 | F198: posebni | G198: 1999-01-13 | J198: 2,200.00 €
A199: 120 | F199: devizni | G199: 2004-01-29 | J199: 1,100.00 €
A200: 184 | F200: robni | G200: 2001-04-15 | J200: 2,800.00 €
... 961 more rows
